[Event "Titled Tuesday Blitz March 29 Early 2022"]
[White "Le, Tuan Minh"]
[Black "Steinberg, Nitzan"]
[WhiteFideId "12401153"]
[BlackFideId "2801795"]
[WhiteElo "2450"]
[BlackElo "2440"]
[Result "1/2-1/2"]
[Round "07"]
[TimeControl "180+1"]
[Date "2022.03.29"]
[WhiteClock "0:00:10"]
[BlackClock "0:00:08"]

1. d4 {[%clk 0:03:00]}  d5 {[%clk 0:02:59]} 2. Nf3 {[%clk 0:02:49]}  Nf6 {[%clk 0:02:59]} 3. Bf4 {[%clk 0:02:48]}  e6 {[%clk 0:02:59]} 4. e3 {[%clk 0:02:48]}  Bd6 {[%clk 0:03:00]} 5. Bg3 {[%clk 0:02:49]}  O-O {[%clk 0:03:00]} 6. c4 {[%clk 0:02:49]}  b6 {[%clk 0:02:56]} 7. Nc3 {[%clk 0:02:49]}  Bb7 {[%clk 0:02:54]} 8. Rc1 {[%clk 0:02:50]}  a6 {[%clk 0:02:54]} 9. cxd5 {[%clk 0:02:47]}  exd5 {[%clk 0:02:54]} 10. Bd3 {[%clk 0:02:47]}  Re8 {[%clk 0:02:53]} 11. O-O {[%clk 0:02:47]}  c5 {[%clk 0:02:53]} 12. Bb1 {[%clk 0:02:36]}  c4 {[%clk 0:02:46]} 13. Ne5 {[%clk 0:02:34]}  b5 {[%clk 0:02:36]} 14. a3 {[%clk 0:02:34]}  Ne4 {[%clk 0:02:24]} 15. Nxe4 {[%clk 0:02:19]}  dxe4 {[%clk 0:02:25]} 16. Qh5 {[%clk 0:02:17]}  Bxe5 {[%clk 0:02:11]} 17. dxe5 {[%clk 0:02:09]}  Nd7 {[%clk 0:02:09]} 18. f3 {[%clk 0:01:43]}  g6 {[%clk 0:02:07]} 19. Qh6 {[%clk 0:01:42]}  exf3 {[%clk 0:02:06]} 20. Rcd1 {[%clk 0:01:26]}  Qe7 {[%clk 0:01:33]} 21. Bh4 {[%clk 0:01:26]}  Qf8 {[%clk 0:01:33]} 22. Qf4 {[%clk 0:01:10]}  Nxe5 {[%clk 0:01:30]} 23. gxf3 {[%clk 0:01:10]}  Qc5 {[%clk 0:01:17]} 24. Bf6 {[%clk 0:00:49]}  Re6 {[%clk 0:01:06]} 25. Kg2 {[%clk 0:00:28]}  Rae8 {[%clk 0:01:06]} 26. e4 {[%clk 0:00:27]}  Qb6 {[%clk 0:00:45]} 27. Bh4 {[%clk 0:00:27]}  a5 {[%clk 0:00:35]} 28. Bf2 {[%clk 0:00:27]}  Qc7 {[%clk 0:00:31]} 29. Bd4 {[%clk 0:00:27]}  b4 {[%clk 0:00:26]} 30. axb4 {[%clk 0:00:28]}  axb4 {[%clk 0:00:27]} 31. Kh1 {[%clk 0:00:23]}  Qe7 {[%clk 0:00:27]} 32. Qe3 {[%clk 0:00:23]}  Qh4 {[%clk 0:00:24]} 33. Qf2 {[%clk 0:00:17]}  Qxf2 {[%clk 0:00:23]} 34. Rxf2 {[%clk 0:00:18]}  Rd8 {[%clk 0:00:14]} 35. Kg2 {[%clk 0:00:14]}  Red6 {[%clk 0:00:13]} 36. Rfd2 {[%clk 0:00:14]}  Nc6 {[%clk 0:00:10]} 37. Be3 {[%clk 0:00:15]}  Rxd2+ {[%clk 0:00:10]} 38. Rxd2 {[%clk 0:00:15]}  Rxd2+ {[%clk 0:00:09]} 39. Bxd2 {[%clk 0:00:16]}  Kf8 {[%clk 0:00:08]} 40. Bc2 {[%clk 0:00:17]}  Ke7 {[%clk 0:00:07]} 41. Ba4 {[%clk 0:00:17]}  Kd6 {[%clk 0:00:06]} 42. Bxc6 {[%clk 0:00:18]}  Bxc6 {[%clk 0:00:06]} 43. Bxb4+ {[%clk 0:00:18]}  Ke6 {[%clk 0:00:07]} 44. Kg3 {[%clk 0:00:18]}  f5 {[%clk 0:00:07]} 45. Kf4 {[%clk 0:00:18]}  fxe4 {[%clk 0:00:07]} 46. fxe4 {[%clk 0:00:19]}  h6 {[%clk 0:00:08]} 47. Bf8 {[%clk 0:00:10]}  g5+ {[%clk 0:00:07]} 48. Ke3 {[%clk 0:00:11]}  h5 {[%clk 0:00:07]} 49. Bh6 {[%clk 0:00:07]}  g4 {[%clk 0:00:07]} 50. Kf4 {[%clk 0:00:07]}  Kf6 {[%clk 0:00:04]} 51. Bg5+ {[%clk 0:00:07]}  Ke6 {[%clk 0:00:04]} 52. Bh4 {[%clk 0:00:08]}  Be8 {[%clk 0:00:04]} 53. Kg5 {[%clk 0:00:08]}  Ke5 {[%clk 0:00:03]} 54. Be1 {[%clk 0:00:07]}  Kxe4 {[%clk 0:00:04]} 55. Kh4 {[%clk 0:00:08]}  Kf3 {[%clk 0:00:04]} 56. Bg3 {[%clk 0:00:08]}  Kg2 {[%clk 0:00:04]} 57. Be5 {[%clk 0:00:08]}  Kf3 {[%clk 0:00:05]} 58. Kg5 {[%clk 0:00:08]}  Ke4 {[%clk 0:00:05]} 59. Bc3 {[%clk 0:00:08]}  Kd3 {[%clk 0:00:06]} 60. Kh4 {[%clk 0:00:09]}  Ke2 {[%clk 0:00:06]} 61. Kg3 {[%clk 0:00:09]}  Ke3 {[%clk 0:00:06]} 62. Bg7 {[%clk 0:00:09]}  Ke4 {[%clk 0:00:07]} 63. Bc3 {[%clk 0:00:10]}  Kd3 {[%clk 0:00:07]} 64. Kh4 {[%clk 0:00:10]}  Ke4 {[%clk 0:00:08]} 65. Kg3 {[%clk 0:00:10]}  Kf5 {[%clk 0:00:08]} 1/2-1/2


[Site "https://www.chess.com"]

[Event "Titled Tuesday Blitz March 29 Early 2022"]
[White "Manolache, Marius"]
[Black "Mikhalsky, Vladimir"]
[WhiteFideId "1201530"]
[BlackFideId "14144352"]
[WhiteElo "2389"]
[BlackElo "2301"]
[Result "1-0"]
[Round "07"]
[TimeControl "180+1"]
[Date "2022.03.30"]
[WhiteClock "0:01:14"]
[BlackClock "0:00:36"]

1. d4 {[%clk 0:03:00]}  Nf6 {[%clk 0:02:59]} 2. c4 {[%clk 0:03:00]}  g6 {[%clk 0:02:58]} 3. f3 {[%clk 0:02:59]}  Bg7 {[%clk 0:02:58]} 4. e4 {[%clk 0:02:58]}  d6 {[%clk 0:02:58]} 5. Ne2 {[%clk 0:02:58]}  O-O {[%clk 0:02:58]} 6. Be3 {[%clk 0:02:58]}  Nc6 {[%clk 0:02:56]} 7. Qd2 {[%clk 0:02:56]}  Re8 {[%clk 0:02:55]} 8. Nbc3 {[%clk 0:02:53]}  a6 {[%clk 0:02:54]} 9. d5 {[%clk 0:02:45]}  Ne5 {[%clk 0:02:54]} 10. Nd4 {[%clk 0:02:44]}  e6 {[%clk 0:02:46]} 11. Be2 {[%clk 0:02:42]}  c5 {[%clk 0:02:39]} 12. dxc6 {[%clk 0:02:40]}  bxc6 {[%clk 0:02:35]} 13. O-O {[%clk 0:02:39]}  Bb7 {[%clk 0:02:18]} 14. Rfd1 {[%clk 0:02:36]}  d5 {[%clk 0:02:17]} 15. f4 {[%clk 0:02:35]}  Neg4 {[%clk 0:02:15]} 16. e5 {[%clk 0:02:34]}  Nxe3 {[%clk 0:02:06]} 17. Qxe3 {[%clk 0:02:34]}  c5 {[%clk 0:01:59]} 18. Nb3 {[%clk 0:02:29]}  d4 {[%clk 0:01:43]} 19. Nxc5 {[%clk 0:02:20]}  Qc7 {[%clk 0:01:27]} 20. Qxd4 {[%clk 0:02:17]}  Red8 {[%clk 0:01:23]} 21. Qf2 {[%clk 0:02:16]}  Nh5 {[%clk 0:01:10]} 22. Nxb7 {[%clk 0:02:12]}  Qxb7 {[%clk 0:01:09]} 23. Bf3 {[%clk 0:02:11]}  Qb4 {[%clk 0:01:01]} 24. Bxa8 {[%clk 0:02:10]}  Rxa8 {[%clk 0:01:00]} 25. g4 {[%clk 0:01:46]}  Bf8 {[%clk 0:00:56]} 26. a3 {[%clk 0:01:29]}  Qxc4 {[%clk 0:00:54]} 27. Rd4 {[%clk 0:01:28]}  Qb3 {[%clk 0:00:39]} 28. gxh5 {[%clk 0:01:23]}  Bc5 {[%clk 0:00:39]} 29. Ne4 {[%clk 0:01:21]}  Ba7 {[%clk 0:00:37]} 30. Rad1 {[%clk 0:01:18]}  Rd8 {[%clk 0:00:36]} 31. Rxd8+ {[%clk 0:01:17]}  Kg7 {[%clk 0:00:36]} 32. Qxa7 {[%clk 0:01:14]} 1-0


[Site "https://www.chess.com"]

[Event "Titled Tuesday Blitz March 29 Early 2022"]
[White "Martin Duque, Jesus"]
[Black "Polanco Nunez, Yoel Estarling"]
[WhiteFideId "2208954"]
[BlackFideId "6401783"]
[WhiteElo "2243"]
[BlackElo "2132"]
[Result "1-0"]
[Round "07"]
[TimeControl "180+1"]
[Date "2022.03.30"]
[WhiteClock "0:01:14"]
[BlackClock "0:00:26"]

1. Nf3 {[%clk 0:02:59]}  Nf6 {[%clk 0:02:39]} 2. e3 {[%clk 0:02:59]}  g6 {[%clk 0:02:37]} 3. b3 {[%clk 0:02:59]}  Bg7 {[%clk 0:02:38]} 4. Bb2 {[%clk 0:02:59]}  O-O {[%clk 0:02:39]} 5. g3 {[%clk 0:02:59]}  d6 {[%clk 0:02:38]} 6. d4 {[%clk 0:02:59]}  Nbd7 {[%clk 0:02:33]} 7. Bg2 {[%clk 0:02:59]}  e5 {[%clk 0:02:33]} 8. dxe5 {[%clk 0:02:59]}  Ng4 {[%clk 0:02:33]} 9. Nc3 {[%clk 0:02:59]}  Ngxe5 {[%clk 0:02:30]} 10. Qd2 {[%clk 0:02:56]}  a5 {[%clk 0:02:26]} 11. O-O-O {[%clk 0:02:54]}  Nxf3 {[%clk 0:02:20]} 12. Bxf3 {[%clk 0:02:53]}  Ne5 {[%clk 0:02:20]} 13. Be2 {[%clk 0:02:53]}  a4 {[%clk 0:02:02]} 14. Nxa4 {[%clk 0:02:35]}  Qe7 {[%clk 0:01:57]} 15. f4 {[%clk 0:02:31]}  Ng4 {[%clk 0:01:48]} 16. Bxg7 {[%clk 0:02:30]}  Kxg7 {[%clk 0:01:47]} 17. Bxg4 {[%clk 0:02:29]}  Bxg4 {[%clk 0:01:47]} 18. Rde1 {[%clk 0:02:25]}  b5 {[%clk 0:01:46]} 19. Nc3 {[%clk 0:02:16]}  c6 {[%clk 0:01:33]} 20. h3 {[%clk 0:02:16]}  Bf3 {[%clk 0:01:31]} 21. Rhf1 {[%clk 0:02:16]}  Bg2 {[%clk 0:01:31]} 22. Qxg2 {[%clk 0:02:14]}  Qf6 {[%clk 0:01:32]} 23. Qd2 {[%clk 0:02:00]}  Rxa2 {[%clk 0:01:25]} 24. Qd4 {[%clk 0:01:54]}  Ra5 {[%clk 0:01:13]} 25. Qxf6+ {[%clk 0:01:52]}  Kxf6 {[%clk 0:01:14]} 26. Kb2 {[%clk 0:01:52]}  Re8 {[%clk 0:01:10]} 27. g4 {[%clk 0:01:52]}  b4 {[%clk 0:01:09]} 28. g5+ {[%clk 0:01:52]}  Kf5 {[%clk 0:01:09]} 29. e4+ {[%clk 0:01:51]}  Ke6 {[%clk 0:01:09]} 30. f5+ {[%clk 0:01:50]}  Ke5 {[%clk 0:01:07]} 31. Nd1 {[%clk 0:01:46]}  Rea8 {[%clk 0:01:05]} 32. Kc1 {[%clk 0:01:46]}  Rc5 {[%clk 0:00:55]} 33. Nb2 {[%clk 0:01:40]}  Rc3 {[%clk 0:00:54]} 34. Nd3+ {[%clk 0:01:39]}  Kd4 {[%clk 0:00:52]} 35. Kb2 {[%clk 0:01:36]}  c5 {[%clk 0:00:48]} 36. e5 {[%clk 0:01:27]}  dxe5 {[%clk 0:00:44]} 37. Nxe5 {[%clk 0:01:25]}  gxf5 {[%clk 0:00:34]} 38. Rf4+ {[%clk 0:01:23]}  Kd5 {[%clk 0:00:34]} 39. Nxf7 {[%clk 0:01:21]}  Kc6 {[%clk 0:00:29]} 40. Rxf5 {[%clk 0:01:20]}  Ra7 {[%clk 0:00:26]} 41. Rf6+ {[%clk 0:01:14]}  Kb5 {[%clk 0:00:26]} 42. Nd6+ {[%clk 0:01:14]} 1-0


[Site "https://www.chess.com"]

[Event "Titled Tuesday Blitz March 29 Early 2022"]
[White "Martin, Lewis"]
[Black "Schut, Han"]
[WhiteFideId "410551"]
[BlackFideId "1005561"]
[WhiteElo "2145"]
[BlackElo "2057"]
[Result "1/2-1/2"]
[Round "07"]
[TimeControl "180+1"]
[Date "2022.03.30"]
[WhiteClock "0:00:04"]
[BlackClock "0:00:07"]

1. e4 {[%clk 0:03:00]}  c5 {[%clk 0:02:55]} 2. Nf3 {[%clk 0:03:00]}  d6 {[%clk 0:02:54]} 3. d4 {[%clk 0:03:01]}  cxd4 {[%clk 0:02:53]} 4. Nxd4 {[%clk 0:03:02]}  Nf6 {[%clk 0:02:53]} 5. Nc3 {[%clk 0:03:02]}  a6 {[%clk 0:02:52]} 6. Bg5 {[%clk 0:03:00]}  e6 {[%clk 0:02:53]} 7. f4 {[%clk 0:03:00]}  Be7 {[%clk 0:02:53]} 8. Qf3 {[%clk 0:03:00]}  h6 {[%clk 0:02:53]} 9. Bh4 {[%clk 0:02:59]}  g5 {[%clk 0:02:53]} 10. fxg5 {[%clk 0:02:58]}  Nfd7 {[%clk 0:02:54]} 11. Bc4 {[%clk 0:02:35]}  hxg5 {[%clk 0:02:25]} 12. Bg3 {[%clk 0:02:30]}  Ne5 {[%clk 0:02:22]} 13. Bxe5 {[%clk 0:02:10]}  dxe5 {[%clk 0:02:23]} 14. Nb3 {[%clk 0:02:06]}  Nc6 {[%clk 0:02:18]} 15. a4 {[%clk 0:02:02]}  Qc7 {[%clk 0:01:55]} 16. O-O {[%clk 0:01:56]}  f6 {[%clk 0:01:53]} 17. Rad1 {[%clk 0:01:38]}  Nd4 {[%clk 0:01:50]} 18. Qd3 {[%clk 0:01:19]}  Bd7 {[%clk 0:01:42]} 19. Nxd4 {[%clk 0:01:02]}  exd4 {[%clk 0:01:41]} 20. Ne2 {[%clk 0:01:01]}  Qxh2+ {[%clk 0:01:38]} 21. Kf2 {[%clk 0:00:59]}  e5 {[%clk 0:01:30]} 22. Ng3 {[%clk 0:00:50]}  Qh4 {[%clk 0:01:12]} 23. Bd5 {[%clk 0:00:40]}  O-O-O {[%clk 0:00:59]} 24. Qb3 {[%clk 0:00:33]}  Qf4+ {[%clk 0:00:48]} 25. Ke2 {[%clk 0:00:17]}  Qe3+ {[%clk 0:00:46]} 26. Qxe3 {[%clk 0:00:16]}  dxe3 {[%clk 0:00:47]} 27. Kxe3 {[%clk 0:00:16]}  Bxa4 {[%clk 0:00:42]} 28. b3 {[%clk 0:00:15]}  Bd7 {[%clk 0:00:39]} 29. Nf5 {[%clk 0:00:13]}  Bxf5 {[%clk 0:00:39]} 30. Rxf5 {[%clk 0:00:13]}  Kc7 {[%clk 0:00:39]} 31. Rf3 {[%clk 0:00:11]}  Rh2 {[%clk 0:00:38]} 32. Kf2 {[%clk 0:00:11]}  Bc5+ {[%clk 0:00:36]} 33. Kg3 {[%clk 0:00:11]}  Rh6 {[%clk 0:00:34]} 34. Rdf1 {[%clk 0:00:11]}  Be7 {[%clk 0:00:33]} 35. Rc3+ {[%clk 0:00:10]}  Kb8 {[%clk 0:00:29]} 36. Ra1 {[%clk 0:00:10]}  Rc8 {[%clk 0:00:29]} 37. Rxc8+ {[%clk 0:00:09]}  Kxc8 {[%clk 0:00:30]} 38. Ra4 {[%clk 0:00:09]}  Kb8 {[%clk 0:00:28]} 39. Rc4 {[%clk 0:00:08]}  Rh8 {[%clk 0:00:26]} 40. Rc3 {[%clk 0:00:08]}  Rc8 {[%clk 0:00:26]} 41. Rxc8+ {[%clk 0:00:08]}  Kxc8 {[%clk 0:00:27]} 42. Kg4 {[%clk 0:00:08]}  Kc7 {[%clk 0:00:27]} 43. Kf5 {[%clk 0:00:08]}  Bd8 {[%clk 0:00:28]} 44. Ke6 {[%clk 0:00:08]}  b5 {[%clk 0:00:27]} 45. c4 {[%clk 0:00:06]}  bxc4 {[%clk 0:00:26]} 46. Bxc4 {[%clk 0:00:06]}  a5 {[%clk 0:00:27]} 47. g4 {[%clk 0:00:06]}  Kb6 {[%clk 0:00:22]} 48. Kd7 {[%clk 0:00:06]}  Bc7 {[%clk 0:00:22]} 49. Ke7 {[%clk 0:00:06]}  Kc5 {[%clk 0:00:16]} 50. Bd5 {[%clk 0:00:05]}  Kd4 {[%clk 0:00:09]} 51. Kxf6 {[%clk 0:00:05]}  Bd8+ {[%clk 0:00:10]} 52. Kf5 {[%clk 0:00:05]}  Ke3 {[%clk 0:00:09]} 53. Be6 {[%clk 0:00:05]}  Kd4 {[%clk 0:00:10]} 54. Bd5 {[%clk 0:00:04]}  Be7 {[%clk 0:00:09]} 55. Be6 {[%clk 0:00:04]}  Bd8 {[%clk 0:00:10]} 56. Kg6 {[%clk 0:00:04]}  Ke3 {[%clk 0:00:08]} 57. Kf5 {[%clk 0:00:04]}  Kd4 {[%clk 0:00:07]} 1/2-1/2


[Site "https://www.chess.com"]

[Event "Titled Tuesday Blitz March 29 Early 2022"]
[White "Matlakov, Maxim"]
[Black "Hakobyan, Aram"]
[WhiteFideId "4168003"]
[BlackFideId "13306677"]
[WhiteElo "2669"]
[BlackElo "2557"]
[Result "1-0"]
[Round "07"]
[TimeControl "180+1"]
[Date "2022.03.29"]
[WhiteClock "0:00:22"]
[BlackClock "0:00:07"]

1. d4 {[%clk 0:03:00]}  Nf6 {[%clk 0:03:00]} 2. c4 {[%clk 0:03:00]}  e6 {[%clk 0:03:01]} 3. Nf3 {[%clk 0:03:01]}  b6 {[%clk 0:03:01]} 4. a3 {[%clk 0:03:00]}  Ba6 {[%clk 0:03:00]} 5. Qc2 {[%clk 0:02:59]}  Bb7 {[%clk 0:03:01]} 6. Nc3 {[%clk 0:02:58]}  c5 {[%clk 0:03:01]} 7. e4 {[%clk 0:02:58]}  cxd4 {[%clk 0:03:01]} 8. Nxd4 {[%clk 0:02:59]}  Bc5 {[%clk 0:03:01]} 9. Nb3 {[%clk 0:02:59]}  Nc6 {[%clk 0:03:02]} 10. Nxc5 {[%clk 0:02:58]}  bxc5 {[%clk 0:03:03]} 11. Be3 {[%clk 0:02:41]}  Nd4 {[%clk 0:02:57]} 12. Qd1 {[%clk 0:02:41]}  e5 {[%clk 0:02:57]} 13. Bd3 {[%clk 0:02:38]}  O-O {[%clk 0:02:56]} 14. b4 {[%clk 0:02:34]}  d6 {[%clk 0:02:56]} 15. O-O {[%clk 0:02:32]}  h6 {[%clk 0:02:42]} 16. Rb1 {[%clk 0:02:31]}  Bc6 {[%clk 0:02:38]} 17. h3 {[%clk 0:02:31]}  Qd7 {[%clk 0:02:34]} 18. f4 {[%clk 0:02:28]}  exf4 {[%clk 0:02:29]} 19. Rxf4 {[%clk 0:02:25]}  Qe6 {[%clk 0:02:15]} 20. Bxd4 {[%clk 0:02:03]}  cxd4 {[%clk 0:02:15]} 21. Ne2 {[%clk 0:02:03]}  Rfe8 {[%clk 0:01:53]} 22. Nxd4 {[%clk 0:01:56]}  Qe5 {[%clk 0:01:52]} 23. Rxf6 {[%clk 0:01:41]}  Qxd4+ {[%clk 0:01:48]} 24. Rf2 {[%clk 0:01:41]}  Bxe4 {[%clk 0:01:44]} 25. Bf1 {[%clk 0:01:25]}  Qe5 {[%clk 0:01:17]} 26. Rc1 {[%clk 0:01:24]}  Re6 {[%clk 0:01:15]} 27. c5 {[%clk 0:01:21]}  dxc5 {[%clk 0:00:54]} 28. Rxc5 {[%clk 0:01:22]}  Qd6 {[%clk 0:00:52]} 29. Qxd6 {[%clk 0:01:18]}  Rxd6 {[%clk 0:00:53]} 30. Bc4 {[%clk 0:01:18]}  Bg6 {[%clk 0:00:51]} 31. Rc7 {[%clk 0:01:18]}  a5 {[%clk 0:00:25]} 32. b5 {[%clk 0:01:14]}  a4 {[%clk 0:00:25]} 33. Bxf7+ {[%clk 0:01:13]}  Bxf7 {[%clk 0:00:26]} 34. Rfxf7 {[%clk 0:01:13]}  Rg6 {[%clk 0:00:27]} 35. b6 {[%clk 0:00:58]}  Rd8 {[%clk 0:00:17]} 36. b7 {[%clk 0:00:56]}  Rd1+ {[%clk 0:00:17]} 37. Kh2 {[%clk 0:00:56]}  Rb1 {[%clk 0:00:17]} 38. Rfd7 {[%clk 0:00:55]}  Kh7 {[%clk 0:00:17]} 39. Rd3 {[%clk 0:00:41]}  Rb2 {[%clk 0:00:05]} 40. Rg3 {[%clk 0:00:39]}  Rxg3 {[%clk 0:00:05]} 41. Kxg3 {[%clk 0:00:40]}  Kg6 {[%clk 0:00:04]} 42. Kf4 {[%clk 0:00:40]}  Kf6 {[%clk 0:00:03]} 43. g4 {[%clk 0:00:30]}  Rb3 {[%clk 0:00:02]} 44. h4 {[%clk 0:00:29]}  g5+ {[%clk 0:00:03]} 45. hxg5+ {[%clk 0:00:29]}  hxg5+ {[%clk 0:00:04]} 46. Ke4 {[%clk 0:00:30]}  Ke6 {[%clk 0:00:05]} 47. Rg7 {[%clk 0:00:27]}  Kd6 {[%clk 0:00:04]} 48. Kf5 {[%clk 0:00:25]}  Kc6 {[%clk 0:00:04]} 49. Kxg5 {[%clk 0:00:25]}  Rb5+ {[%clk 0:00:02]} 50. Kh6 {[%clk 0:00:23]}  Rb6 {[%clk 0:00:02]} 51. Rg6+ {[%clk 0:00:22]}  Kxb7 {[%clk 0:00:02]} 52. Rxb6+ {[%clk 0:00:23]}  Kxb6 {[%clk 0:00:03]} 53. g5 {[%clk 0:00:24]}  Kc5 {[%clk 0:00:04]} 54. g6 {[%clk 0:00:24]}  Kc4 {[%clk 0:00:04]} 55. g7 {[%clk 0:00:25]}  Kb3 {[%clk 0:00:05]} 56. g8=Q+ {[%clk 0:00:25]}  Kxa3 {[%clk 0:00:06]} 57. Qb8 {[%clk 0:00:23]}  Ka2 {[%clk 0:00:07]} 58. Qb4 {[%clk 0:00:23]}  Ka1 {[%clk 0:00:07]} 59. Qxa4+ {[%clk 0:00:23]}  Kb2 {[%clk 0:00:07]} 60. Qe4 {[%clk 0:00:22]} 1-0


[Site "https://www.chess.com"]

[Event "Titled Tuesday Blitz March 29 Early 2022"]
[White "Mena, Ailen Oriana"]
[Black "Agasarov, Benik"]
[WhiteFideId "3902773"]
[BlackFideId "13314823"]
[WhiteElo "1534"]
[BlackElo "2532"]
[Result "0-1"]
[Round "07"]
[TimeControl "180+1"]
[Date "2022.03.30"]
[WhiteClock "0:00:01"]
[BlackClock "0:01:52"]

1. e4 {[%clk 0:03:00]}  c5 {[%clk 0:02:59]} 2. c3 {[%clk 0:03:00]}  Nf6 {[%clk 0:02:57]} 3. e5 {[%clk 0:03:00]}  Nd5 {[%clk 0:02:57]} 4. d4 {[%clk 0:03:00]}  cxd4 {[%clk 0:02:57]} 5. Nf3 {[%clk 0:02:53]}  e6 {[%clk 0:02:56]} 6. cxd4 {[%clk 0:02:53]}  d6 {[%clk 0:02:56]} 7. Bc4 {[%clk 0:02:45]}  Be7 {[%clk 0:02:45]} 8. O-O {[%clk 0:02:42]}  O-O {[%clk 0:02:45]} 9. Qe2 {[%clk 0:02:26]}  Nc6 {[%clk 0:02:42]} 10. Rd1 {[%clk 0:02:17]}  Bd7 {[%clk 0:02:34]} 11. Nc3 {[%clk 0:01:30]}  Nxc3 {[%clk 0:02:32]} 12. bxc3 {[%clk 0:01:31]}  Qc7 {[%clk 0:02:28]} 13. Bf4 {[%clk 0:01:19]}  dxe5 {[%clk 0:02:20]} 14. Nxe5 {[%clk 0:01:20]}  Nxe5 {[%clk 0:02:20]} 15. Bxe5 {[%clk 0:01:19]}  Bd6 {[%clk 0:02:20]} 16. Bxd6 {[%clk 0:01:14]}  Qxd6 {[%clk 0:02:20]} 17. Rab1 {[%clk 0:00:55]}  b6 {[%clk 0:02:17]} 18. d5 {[%clk 0:00:42]}  e5 {[%clk 0:02:12]} 19. Re1 {[%clk 0:00:25]}  Rfe8 {[%clk 0:02:08]} 20. Rbd1 {[%clk 0:00:22]}  Rac8 {[%clk 0:02:08]} 21. Bb3 {[%clk 0:00:12]}  Rxc3 {[%clk 0:02:07]} 22. Rd3 {[%clk 0:00:09]}  Bb5 {[%clk 0:02:06]} 23. Rxc3 {[%clk 0:00:07]}  Bxe2 {[%clk 0:02:06]} 24. Rxe2 {[%clk 0:00:07]}  Qb4 {[%clk 0:02:05]} 25. Rec2 {[%clk 0:00:05]}  Qd4 {[%clk 0:02:04]} 26. h3 {[%clk 0:00:05]}  h5 {[%clk 0:02:02]} 27. Rc7 {[%clk 0:00:02]}  e4 {[%clk 0:01:56]} 28. Rxa7 {[%clk 0:00:03]}  e3 {[%clk 0:01:56]} 29. Rcc7 {[%clk 0:00:01]}  exf2+ {[%clk 0:01:54]} 30. Kh2 {[%clk 0:00:01]}  f1=Q {[%clk 0:01:52]} 0-1


[Site "https://www.chess.com"]

[Event "Titled Tuesday Blitz March 29 Early 2022"]
[White "Mihailidis, Anastasios"]
[Black "Migot, Tangi"]
[WhiteFideId "4205588"]
[BlackFideId "662445"]
[WhiteElo "2312"]
[BlackElo "2511"]
[Result "0-1"]
[Round "07"]
[TimeControl "180+1"]
[Date "2022.03.30"]
[WhiteClock "0:00:14"]
[BlackClock "0:00:21"]

1. e4 {[%clk 0:03:00]}  e5 {[%clk 0:03:00]} 2. Nf3 {[%clk 0:03:00]}  d6 {[%clk 0:03:00]} 3. d4 {[%clk 0:03:00]}  exd4 {[%clk 0:03:01]} 4. Nxd4 {[%clk 0:03:01]}  Nf6 {[%clk 0:03:02]} 5. Bg5 {[%clk 0:02:58]}  Be7 {[%clk 0:03:02]} 6. Nc3 {[%clk 0:02:53]}  O-O {[%clk 0:03:03]} 7. Be2 {[%clk 0:02:54]}  Nxe4 {[%clk 0:03:02]} 8. Bxe7 {[%clk 0:02:53]}  Qxe7 {[%clk 0:03:02]} 9. Nxe4 {[%clk 0:02:45]}  Qxe4 {[%clk 0:03:02]} 10. O-O {[%clk 0:02:46]}  Nc6 {[%clk 0:02:54]} 11. Nxc6 {[%clk 0:02:42]}  Qxc6 {[%clk 0:02:54]} 12. Bf3 {[%clk 0:02:41]}  Qb6 {[%clk 0:02:54]} 13. b3 {[%clk 0:02:41]}  Bf5 {[%clk 0:02:53]} 14. Qd2 {[%clk 0:02:41]}  Rfe8 {[%clk 0:02:48]} 15. c4 {[%clk 0:02:41]}  Re5 {[%clk 0:02:45]} 16. Rfe1 {[%clk 0:02:38]}  Rae8 {[%clk 0:02:44]} 17. Rxe5 {[%clk 0:02:38]}  Rxe5 {[%clk 0:02:44]} 18. Re1 {[%clk 0:02:37]}  Rxe1+ {[%clk 0:02:43]} 19. Qxe1 {[%clk 0:02:37]}  Kf8 {[%clk 0:02:43]} 20. Qd2 {[%clk 0:02:34]}  Be6 {[%clk 0:02:35]} 21. Qg5 {[%clk 0:02:30]}  c6 {[%clk 0:02:33]} 22. Qh4 {[%clk 0:02:26]}  h6 {[%clk 0:02:29]} 23. Qe4 {[%clk 0:02:21]}  Qc5 {[%clk 0:02:24]} 24. Qh7 {[%clk 0:02:17]}  Qe5 {[%clk 0:02:21]} 25. Qh8+ {[%clk 0:02:11]}  Ke7 {[%clk 0:02:21]} 26. h3 {[%clk 0:02:10]}  d5 {[%clk 0:02:10]} 27. cxd5 {[%clk 0:02:06]}  cxd5 {[%clk 0:02:11]} 28. Qa8 {[%clk 0:02:03]}  d4 {[%clk 0:01:53]} 29. Qxb7+ {[%clk 0:02:02]}  Kf6 {[%clk 0:01:54]} 30. Qxa7 {[%clk 0:01:54]}  Qe1+ {[%clk 0:01:51]} 31. Kh2 {[%clk 0:01:52]}  Qxf2 {[%clk 0:01:52]} 32. Qb6 {[%clk 0:01:41]}  Qe3 {[%clk 0:01:49]} 33. Qd8+ {[%clk 0:01:23]}  Kg6 {[%clk 0:01:49]} 34. Qh4 {[%clk 0:01:06]}  d3 {[%clk 0:01:35]} 35. Qe4+ {[%clk 0:00:55]}  Qxe4 {[%clk 0:01:35]} 36. Bxe4+ {[%clk 0:00:55]}  Bf5 {[%clk 0:01:35]} 37. Bf3 {[%clk 0:00:53]}  Kf6 {[%clk 0:01:31]} 38. Kg3 {[%clk 0:00:52]}  Ke5 {[%clk 0:01:29]} 39. Kf2 {[%clk 0:00:52]}  Kd4 {[%clk 0:01:29]} 40. Bd1 {[%clk 0:00:48]}  Be4 {[%clk 0:01:19]} 41. g3 {[%clk 0:00:46]}  f5 {[%clk 0:01:16]} 42. a4 {[%clk 0:00:41]}  g5 {[%clk 0:01:07]} 43. a5 {[%clk 0:00:40]}  Bb7 {[%clk 0:01:04]} 44. b4 {[%clk 0:00:34]}  Ba6 {[%clk 0:01:04]} 45. Ba4 {[%clk 0:00:27]}  Kc4 {[%clk 0:00:58]} 46. Ke3 {[%clk 0:00:18]}  Kxb4 {[%clk 0:00:58]} 47. Bd7 {[%clk 0:00:16]}  Kc3 {[%clk 0:00:44]} 48. Bxf5 {[%clk 0:00:16]}  d2 {[%clk 0:00:44]} 49. Bg4 {[%clk 0:00:16]}  Bc8 {[%clk 0:00:41]} 50. Bd1 {[%clk 0:00:15]}  Bxh3 {[%clk 0:00:40]} 51. Be2 {[%clk 0:00:14]}  Bc8 {[%clk 0:00:37]} 52. a6 {[%clk 0:00:13]}  Bxa6 {[%clk 0:00:36]} 53. Bd1 {[%clk 0:00:13]}  Bd3 {[%clk 0:00:33]} 54. Kf3 {[%clk 0:00:12]}  Bc2 {[%clk 0:00:32]} 55. Be2 {[%clk 0:00:12]}  d1=Q {[%clk 0:00:27]} 56. Bxd1 {[%clk 0:00:12]}  Bxd1+ {[%clk 0:00:28]} 57. Ke4 {[%clk 0:00:13]}  h5 {[%clk 0:00:20]} 58. Kf5 {[%clk 0:00:12]}  h4 {[%clk 0:00:21]} 59. gxh4 {[%clk 0:00:10]}  gxh4 {[%clk 0:00:22]} 60. Kf4 {[%clk 0:00:10]}  Kd3 {[%clk 0:00:21]} 61. Kg5 {[%clk 0:00:10]}  h3 {[%clk 0:00:21]} 62. Kh4 {[%clk 0:00:11]}  h2 {[%clk 0:00:21]} 63. Kg3 {[%clk 0:00:11]}  h1=Q {[%clk 0:00:21]} 64. Kf2 {[%clk 0:00:12]}  Qf3+ {[%clk 0:00:21]} 65. Kg1 {[%clk 0:00:13]}  Qg3+ {[%clk 0:00:21]} 66. Kh1 {[%clk 0:00:14]}  Bf3# {[%clk 0:00:21]} 0-1


[Site "https://www.chess.com"]